fUSD/lending_fUSD_20241227
["ID","MTS","AMOUNT","RATE_DAILY","PERIOD"]
[346826609,1735309844808,-500.0,0.00010771,2]
[346826610,1735309844819,-500.0,0.00010771,2]
[346826611,1735309844829,-720.67,0.00010771,2]
[346826612,1735309844839,-500.0,0.00010771,2]
[346826613,1735309844850,-448.67243702,0.00010771,2]
[346826614,1735309844859,-500.0,0.00010771,2]
[346826615,1735309844869,-507.76298699,0.00010771,2]
[346826616,1735309844879,-1799.59,0.00010771,2]
[346826617,1735309844889,-1035.98,0.00010771,2]
[346826618,1735309844899,-500.0,0.00010771,2]
[346826619,1735309844909,-1033.14,0.00010771,2]
[346826620,1735309844919,-1012.88,0.00010771,2]
[346826621,1735309844930,-500.0,0.00010771,2]
[346826622,1735309844939,-1305.49,0.00010771,2]
[346826623,1735309844950,-500.0,0.00010771,2]
[346826624,1735309844959,-521.73,0.00010771,2]
[346826625,1735309844969,-989.02,0.00010771,2]
[346826626,1735309844978,-963.49,0.00010771,2]
[346826627,1735309844988,-500.0,0.00010771,2]
[346826628,1735309844998,-1055.24,0.00010771,2]
[346826629,1735309845007,-500.0,0.00010771,2]
[346826630,1735309845017,-500.0,0.00010771,2]
[346826631,1735309845027,-500.0,0.00010771,2]
[346826632,1735309845037,-2106.06,0.00010771,2]
[346826633,1735309845047,-1077.33,0.00010771,2]
[346826634,1735309845057,-500.0,0.00010771,2]
[346826635,1735309845069,-267.76041674,0.00010771,2]
[346826636,1735309845079,-500.0,0.00010771,2]
[346826637,1735309845089,-500.0,0.00010771,2]
[346826638,1735309845100,-500.0,0.00010771,2]
[346826639,1735309845110,-500.0,0.00010771,2]
[346826640,1735309845120,-1275.78,0.00010771,2]
[346826641,1735309845130,-500.0,0.00010771,2]
[346826642,1735309845141,-500.0,0.00010771,2]
[346826643,1735309845151,-859.8,0.00010771,2]
[346826644,1735309845161,-1820.26,0.00010771,2]
[346826645,1735309845171,-500.0,0.00010771,2]
[346826646,1735309845180,-1406.17,0.00010771,2]
[346826647,1735309845190,-672.17,0.00010771,2]
[346826648,1735309845199,-500.0,0.00010771,2]
[346826649,1735309845209,-500.0,0.00010771,2]
[346826650,1735309845219,-500.0,0.00010771,2]
[346826651,1735309845228,-1470.62,0.00010771,2]
[346826652,1735309845238,-500.0,0.00010771,2]
[346826653,1735309845247,-602.78733476,0.00010771,2]
[346826654,1735309845256,-1882.42,0.00010771,2]
[346826655,1735309845266,-597.17,0.00010771,2]
[346826656,1735309845275,-3466.98,0.00010771,2]
[346826657,1735309845284,-500.0,0.00010771,2]
[346826658,1735309845294,-500.0,0.00010771,2]
[346826659,1735309845303,-500.0,0.00010771,2]
[346826660,1735309845318,-1405.92,0.00010771,2]
[346826661,1735309845328,-1409.03,0.00010771,2]
[346826662,1735309845338,-500.0,0.00010771,2]
[346826663,1735309845347,-2137.0,0.00010771,2]
[346826664,1735309845357,-1518.01,0.00010771,2]
[346826665,1735309845366,-1043.63,0.00010771,2]
[346826666,1735309845376,-500.0,0.00010771,2]
[346826668,1735309845386,-500.0,0.00010771,2]
[346826669,1735309845395,-500.0,0.00010771,2]
[346826670,1735309845405,-1094.83,0.00010771,2]
[346826671,1735309845414,-500.0,0.00010771,2]
[346826672,1735309845423,-500.0,0.00010771,2]
[346826673,1735309845433,-8346.37329,0.00010771,2]
[346826674,1735309845447,-500.0,0.00010771,2]
[346826675,1735309845456,-503.53,0.00010771,2]
[346826676,1735309845466,-1781.9,0.00010771,2]
[346826678,1735309845475,-500.0,0.00010771,2]
[346826679,1735309845485,-1767.91,0.00010771,2]
[346826681,1735309845495,-2550.598579,0.00010771,2]
[346826682,1735309845504,-1895.88,0.00010771,2]
[346826683,1735309845513,-508.88883416,0.00010771,2]
[346826684,1735309845523,-2344.99,0.00010771,2]
[346826685,1735309845533,-500.0,0.00010771,2]
[346826686,1735309845542,-500.0,0.00010771,2]
[346826687,1735309845551,-500.0,0.00010771,2]
[346826688,1735309845565,-502.68939378,0.00010771,2]
[346826689,1735309845575,-1596.9,0.00010771,2]
[346826690,1735309845585,-1798.7261266,0.00010771,2]
[346826691,1735309845595,-1486.35,0.00010771,2]
[346826692,1735309845605,-3132.86,0.00010771,2]
[346826693,1735309845614,-500.0,0.00010771,2]
[346826694,1735309845624,-500.0,0.00010771,2]
[346826695,1735309845633,-2098.47,0.00010771,2]
[346826696,1735309845643,-500.0,0.00010771,2]
[346826697,1735309845653,-500.0,0.00010771,2]
[346826698,1735309845663,-5941.9013168,0.00010771,2]
[346826699,1735309845673,-500.0,0.00010771,2]
[346826700,1735309845684,-500.0,0.00010771,2]
[346826701,1735309845693,-2327.45,0.00010771,2]
[346826702,1735309845703,-724.99,0.00010771,2]
[346826703,1735309845713,-500.0,0.00010771,2]
[346826704,1735309845722,-3719.56,0.00010771,2]
[346826705,1735309845732,-502.69799101,0.00010771,2]
[346826706,1735309845741,-500.83313769,0.00010771,2]
[346826707,1735309845751,-502.00475857,0.00010771,2]
[346826708,1735309845760,-317.47381817,0.00010771,2]
[346826709,1735309845770,-500.0,0.00010771,2]
[346826710,1735309845780,-585.913011,0.00010771,2]
[346826711,1735309845789,-2088.79,0.00010772,2]
[346826712,1735309845799,-1735.76,0.00010772,2]
[346826713,1735309845808,-1384.22,0.00010772,2]
[346826714,1735309845820,-500.0,0.00010772,2]
[346826715,1735309845830,-500.0,0.00010772,2]
[346826716,1735309845839,-1250.44,0.00010772,2]
[346826717,1735309845849,-1393.96,0.00010772,2]
[346826718,1735309845858,-1455.92,0.00010772,2]
[346826719,1735309845867,-1133.12,0.00010772,2]
[346826720,1735309845877,-2311.83,0.00010772,2]
[346826721,1735309845886,-500.0,0.00010772,2]
[346826722,1735309845896,-610.19,0.00010772,2]
[346826723,1735309845905,-500.0,0.00010772,2]
[346826724,1735309845915,-1296.01,0.00010772,2]
[346826725,1735309845924,-500.0,0.00010772,2]
[346826726,1735309845933,-1783.95,0.00010772,2]
[346826727,1735309845943,-2091.34,0.00010772,2]
[346826728,1735309845952,-1670.89,0.00010772,2]
[346826729,1735309845962,-918.08,0.00010772,2]
[346826730,1735309845971,-500.0,0.00010772,2]
[346826731,1735309845980,-1245.92,0.00010772,2]
[346826732,1735309845990,-1139.54,0.00010772,2]
[346826733,1735309846000,-500.0,0.00010772,2]
[346826734,1735309846009,-660.65,0.00010772,2]
[346826735,1735309846019,-1478.88,0.00010772,2]
[346826736,1735309846029,-500.0,0.00010772,2]
[346826738,1735309846039,-1009.25,0.00010772,2]
[346826739,1735309846048,-500.0,0.00010772,2]
[346826740,1735309846058,-1099.68,0.00010772,2]
[346826741,1735309846072,-613.53,0.00010772,2]
[346826742,1735309846081,-1397.39,0.00010772,2]
[346826743,1735309846090,-930.96,0.00010772,2]
[346826744,1735309846099,-1019.03,0.00010772,2]
[346826745,1735309846109,-1545.66,0.00010772,2]
[346826746,1735309846119,-2471.67,0.00010772,2]
[346826747,1735309846129,-17906.8,0.00010772,2]
[346826748,1735309846138,-1343.65,0.00010772,2]
[346826750,1735309846148,-2670.41,0.00010772,2]
[346826752,1735309846157,-500.0,0.00010772,2]
[346826754,1735309846166,-1136.07,0.00010772,2]
[346826756,1735309846175,-1155.55,0.00010772,2]
[346826758,1735309846185,-602.97,0.00010772,2]
[346826760,1735309846194,-1087.69,0.00010772,2]
[346826762,1735309846203,-6384.0,0.00010772,2]
[346826764,1735309846213,-2124.03,0.00010772,2]
[346826766,1735309846223,-1272.04,0.00010772,2]
[346826767,1735309846232,-1100.35,0.00010772,2]
[346826768,1735309846242,-500.0,0.00010772,2]
[346826770,1735309846252,-3834.9,0.00010772,2]
[346826772,1735309846261,-1471.9,0.00010772,2]
[346826774,1735309846271,-1555.91,0.00010772,2]
[346826775,1735309846281,-1352.17,0.00010772,2]
[346826776,1735309846290,-1610.37,0.00010772,2]
[346826777,1735309846300,-10977.93,0.00010772,2]
[346826778,1735309846314,-696.62,0.00010772,2]
[346826779,1735309846324,-1827.31,0.00010772,2]
[346826780,1735309846338,-1562.5,0.00010772,2]
[346826781,1735309846348,-2447.67,0.00010772,2]
[346826782,1735309846357,-1460.34,0.00010772,2]
[346826783,1735309846367,-1304.33,0.00010772,2]
[346826784,1735309846376,-986.19,0.00010772,2]
[346826785,1735309846386,-500.0,0.00010772,2]
[346826786,1735309846396,-1264.4,0.00010772,2]
[346826787,1735309846406,-1061.83,0.00010772,2]
[346826788,1735309846416,-2518.73,0.00010772,2]
[346826789,1735309846426,-1083.16,0.00010772,2]
[346826790,1735309846437,-500.0,0.00010772,2]
[346826791,1735309846450,-5211.25,0.00010772,2]
[346826792,1735309846459,-1166.09,0.00010772,2]
[346826793,1735309846470,-921.62,0.00010772,2]
[346826794,1735309846480,-500.0,0.00010772,2]
[346826795,1735309846492,-1578.05,0.00010772,2]
[346826796,1735309846502,-1227.0,0.00010772,2]
[346826797,1735309846512,-1200.57,0.00010772,2]
[346826798,1735309846522,-30633.9,0.00010772,2]
[346826799,1735309846531,-2460.92,0.00010772,2]
[346826800,1735309846541,-2139.65,0.00010772,2]
[346826801,1735309846551,-2592.22,0.00010772,2]
[346826802,1735309846564,-500.0,0.00010772,2]
[346826803,1735309846573,-617.59,0.00010772,2]
[346826804,1735309846583,-500.0,0.00010772,2]
[346826805,1735309846592,-1260.78,0.00010772,2]
[346826806,1735309846602,-1104.05,0.00010772,2]
[346826807,1735309846611,-733.98,0.00010772,2]
[346826808,1735309846621,-500.0,0.00010772,2]
[346826809,1735309846630,-1487.06,0.00010772,2]
[346826810,1735309846640,-1252.71,0.00010772,2]
[346826811,1735309846649,-2207.45,0.00010772,2]
[346826812,1735309846659,-2473.96,0.00010772,2]
[346826813,1735309846668,-2081.23,0.00010772,2]
[346826814,1735309846678,-500.0,0.00010772,2]
[346826815,1735309846687,-2905.79,0.00010772,2]
[346826816,1735309846696,-500.0,0.00010772,2]
[346826817,1735309846706,-2570.19,0.00010772,2]
[346826818,1735309846715,-3794.52,0.00010772,2]
[346826819,1735309846725,-500.0,0.00010772,2]
[346826820,1735309846734,-685.56,0.00010772,2]
[346826821,1735309846743,-1950.15,0.00010772,2]
[346826822,1735309846753,-51476.28477387,0.00010773,2]
[346826823,1735309846762,-3000.0,0.00010773,2]
[346826824,1735309846772,-3520.2399548,0.00010778,2]
[346826825,1735309846783,-15125.8186292,0.00010785,2]
[346826826,1735309846792,-2540.08,0.000108,2]
[346826827,1735309846802,-1487.71,0.00010842,2]
[346826828,1735309846813,-1541.72,0.00010842,2]
[346826829,1735309846823,-771.1,0.00010842,2]
[346826830,1735309846832,-500.0,0.0001087,2]
[346826831,1735309846842,-500.0,0.0001087,2]
[346826832,1735309846852,-500.0,0.0001087,2]
[346826833,1735309846861,-738.52,0.0001087,2]
[346826834,1735309846871,-500.0,0.0001087,2]
[346826835,1735309846881,-676.79,0.0001087,2]
[346826836,1735309846890,-500.0,0.0001087,2]
[346826837,1735309846900,-500.0,0.0001087,2]
[346826838,1735309846909,-500.0,0.0001087,2]
[346826839,1735309846919,-500.0,0.0001087,2]
[346826840,1735309846929,-500.0,0.0001087,2]
[346826841,1735309846938,-500.0,0.0001087,2]
[346826842,1735309846948,-500.0,0.0001087,2]
[346826843,1735309846959,-500.0,0.0001087,2]
[346826844,1735309846969,-500.0,0.0001087,2]
[346826845,1735309846979,-500.0,0.0001087,2]
[346826846,1735309846989,-500.0,0.0001087,2]
[346826847,1735309846999,-500.0,0.0001087,2]
[346826848,1735309847009,-640.88,0.0001087,2]
[346826849,1735309847019,-714.84,0.0001087,2]
[346826850,1735309847028,-500.0,0.0001087,2]
[346826851,1735309847038,-500.0,0.0001087,2]
[346826852,1735309847047,-500.0,0.0001087,2]
[346826853,1735309847056,-843.04,0.0001087,2]
[346826854,1735309847068,-854.93,0.0001087,2]
[346826855,1735309847078,-500.0,0.0001087,2]
[346826856,1735309847087,-500.0,0.0001087,2]
[346826857,1735309847097,-605.92173215,0.0001087,2]
[346826858,1735309847106,-500.0,0.0001087,2]
[346826859,1735309847115,-932.06,0.0001087,2]
[346826860,1735309847125,-500.0,0.0001087,2]
[346826861,1735309847135,-500.0,0.0001087,2]
[346826862,1735309847144,-500.0,0.0001087,2]
[346826863,1735309847153,-500.0,0.0001087,2]
[346826864,1735309847163,-500.0,0.0001087,2]
[346826865,1735309847172,-500.0,0.0001087,2]
[346826866,1735309847181,-618.77589865,0.0001087,2]
[346826867,1735309847190,-500.0,0.0001087,2]
[346826868,1735309847200,-500.0,0.0001087,2]
[346826869,1735309847209,-500.0,0.0001087,2]
[346826870,1735309847219,-500.0,0.0001087,2]
[346826871,1735309847229,-500.0,0.0001087,2]
[346826872,1735309847238,-500.0,0.0001087,2]
[346826873,1735309847248,-500.0,0.0001087,2]
[346826874,1735309847257,-500.0,0.0001087,2]
[346826875,1735309847267,-500.0,0.0001087,2]
[346826876,1735309847276,-629.77,0.0001087,2]
[346826877,1735309847286,-500.0,0.0001087,2]
[346826878,1735309847296,-500.0,0.0001087,2]
[346826879,1735309847305,-500.0,0.0001087,2]
[346826880,1735309847317,-500.0,0.0001087,2]
[346826881,1735309847326,-500.0,0.0001087,2]
[346826882,1735309847336,-500.0,0.0001087,2]
[346826883,1735309847346,-500.0,0.0001087,2]
[346826884,1735309847356,-1081.34,0.0001087,2]
[346826885,1735309847366,-500.0,0.0001087,2]
[346826886,1735309847375,-500.0,0.0001087,2]
[346826887,1735309847386,-553.49,0.0001087,2]
[346826888,1735309847396,-500.0,0.0001087,2]
[346826889,1735309847406,-500.0,0.0001087,2]
[346826890,1735309847416,-500.0,0.0001087,2]
[346826891,1735309847425,-500.0,0.0001087,2]
[346826892,1735309847435,-500.0,0.0001087,2]
[346826893,1735309847447,-500.0,0.0001087,2]
[346826894,1735309847458,-500.0,0.0001087,2]
[346826895,1735309847468,-500.0,0.0001087,2]
[346826896,1735309847477,-500.0,0.0001087,2]
[346826897,1735309847487,-500.0,0.0001087,2]
[346826898,1735309847496,-500.0,0.0001087,2]
[346826899,1735309847506,-500.0,0.0001087,2]
[346826900,1735309847515,-500.0,0.0001087,2]
[346826901,1735309847524,-500.0,0.0001087,2]
[346826902,1735309847535,-884.99,0.0001087,2]
[346826903,1735309847544,-500.0,0.0001087,2]
[346826904,1735309847553,-500.0,0.0001087,2]
[346826905,1735309847563,-500.0,0.0001087,2]
[346826906,1735309847572,-500.0,0.0001087,2]
[346826907,1735309847582,-500.0,0.0001087,2]
[346826908,1735309847592,-500.0,0.0001087,2]
[346826909,1735309847601,-500.0,0.0001087,2]
[346826910,1735309847610,-500.0,0.0001087,2]
[346826911,1735309847620,-500.0,0.0001087,2]
[346826912,1735309847630,-605.8,0.0001087,2]
[346826913,1735309847639,-500.0,0.0001087,2]
[346826914,1735309847649,-500.0,0.0001087,2]
[346826915,1735309847658,-500.0,0.0001087,2]
[346826916,1735309847668,-500.0,0.0001087,2]
[346826917,1735309847677,-500.0,0.0001087,2]
[346826918,1735309847687,-500.0,0.0001087,2]
[346826919,1735309847697,-500.0,0.0001087,2]
[346826920,1735309847707,-500.0,0.0001087,2]
[346826921,1735309847716,-695.33,0.0001087,2]
[346826922,1735309847726,-500.0,0.0001087,2]
[346826923,1735309847735,-500.0,0.0001087,2]
[346826924,1735309847745,-500.0,0.0001087,2]
[346826925,1735309847755,-500.0,0.0001087,2]
[346826926,1735309847765,-680.87,0.0001087,2]
[346826927,1735309847775,-500.0,0.0001087,2]
[346826928,1735309847786,-500.0,0.0001087,2]
[346826929,1735309847795,-500.0,0.0001087,2]
[346826930,1735309847805,-500.0,0.0001087,2]
[346826931,1735309847817,-500.0,0.0001087,2]
[346826932,1735309848049,-500.0,0.0001087,2]
[346826933,1735309848059,-500.0,0.0001087,2]
[346826934,1735309848070,-500.0,0.0001087,2]
[346826935,1735309848080,-1072.3,0.0001087,2]
[346826936,1735309848090,-500.0,0.0001087,2]
[346826937,1735309848100,-500.0,0.0001087,2]
[346826938,1735309848110,-500.0,0.0001087,2]
[346826939,1735309848119,-733.64,0.0001087,2]
[346826940,1735309848130,-500.0,0.0001087,2]
[346826941,1735309848140,-500.0,0.0001087,2]
[346826942,1735309848150,-500.0,0.0001087,2]
[346826943,1735309848159,-500.0,0.0001087,2]
[346826944,1735309848169,-553.76,0.0001087,2]
[346826945,1735309848178,-500.0,0.0001087,2]
[346826946,1735309848188,-500.0,0.0001087,2]
[346826947,1735309848197,-500.0,0.0001087,2]
[346826948,1735309848207,-630.74,0.0001087,2]
[346826949,1735309848216,-500.0,0.0001087,2]
[346826950,1735309848226,-595.81,0.0001087,2]
[346826951,1735309848236,-500.0,0.0001087,2]
[346826952,1735309848246,-500.0,0.0001087,2]
[346826953,1735309848255,-500.0,0.0001087,2]
[346826954,1735309848265,-683.65,0.0001087,2]
[346826955,1735309848274,-536.3,0.0001087,2]
[346826956,1735309848284,-500.0,0.0001087,2]
[346826957,1735309848294,-500.0,0.0001087,2]
[346826958,1735309848304,-500.0,0.0001087,2]
[346826959,1735309848314,-500.0,0.0001087,2]
[346826960,1735309848324,-1393.57,0.0001087,2]
[346826961,1735309848334,-913.39,0.0001087,2]
[346826962,1735309848343,-500.0,0.0001087,2]
[346826963,1735309848353,-500.0,0.0001087,2]
[346826964,1735309848363,-500.0,0.0001087,2]
[346826965,1735309848373,-617.18309276,0.0001087,2]
[346826966,1735309848382,-500.0,0.0001087,2]
[346826967,1735309848392,-500.0,0.0001087,2]
[346826968,1735309848402,-500.0,0.0001087,2]
[346826969,1735309848412,-500.0,0.0001087,2]
[346826970,1735309848422,-1248.42,0.0001087,2]
[346826971,1735309848432,-500.0,0.0001087,2]
[346826972,1735309848445,-500.0,0.0001087,2]
[346826973,1735309848455,-811.81,0.0001087,2]
[346826974,1735309848465,-950.45,0.0001087,2]
[346826975,1735309848475,-500.0,0.0001087,2]
[346826976,1735309848485,-500.0,0.0001087,2]
[346826977,1735309848495,-500.0,0.0001087,2]
[346826978,1735309848505,-500.0,0.0001087,2]
[346826979,1735309848515,-500.0,0.0001087,2]
[346826980,1735309848525,-500.0,0.0001087,2]
[346826981,1735309848535,-500.0,0.0001087,2]
[346826982,1735309848545,-545.5,0.0001087,2]
[346826983,1735309848554,-500.0,0.0001087,2]
[346826984,1735309848564,-500.0,0.0001087,2]
[346826985,1735309848574,-503.96693471,0.0001087,2]
[346826986,1735309848584,-500.0,0.0001087,2]
[346826987,1735309848594,-500.0,0.0001087,2]
[346826988,1735309848603,-520.11,0.0001087,2]
[346826989,1735309848613,-710.55,0.0001087,2]
[346826990,1735309848623,-500.0,0.0001087,2]
[346826991,1735309848633,-500.0,0.0001087,2]
[346826992,1735309848643,-500.0,0.0001087,2]
[346826993,1735309848652,-500.0,0.0001087,2]
[346826994,1735309848663,-500.0,0.0001087,2]
[346826995,1735309848672,-500.0,0.0001087,2]
[346826996,1735309848682,-500.0,0.0001087,2]
[346826997,1735309848692,-500.0,0.0001087,2]
[346826998,1735309848701,-532.36514261,0.0001087,2]
[346826999,1735309848711,-500.0,0.0001087,2]
[346827000,1735309848720,-569.25,0.0001087,2]
[346827001,1735309848730,-500.0,0.0001087,2]
[346827002,1735309848740,-500.0,0.0001087,2]
[346827003,1735309848750,-500.0,0.0001087,2]
[346827004,1735309848760,-1631.61,0.0001087,2]
[346827005,1735309848770,-500.0,0.0001087,2]
[346827006,1735309848780,-500.0,0.0001087,2]
[346827007,1735309848790,-500.0,0.0001087,2]
[346827008,1735309848800,-500.0,0.0001087,2]
[346827009,1735309848810,-500.0,0.0001087,2]
[346827010,1735309848823,-500.0,0.0001087,2]
[346827011,1735309848833,-774.02,0.0001087,2]
[346827012,1735309848843,-500.0,0.0001087,2]
[346827013,1735309848854,-500.0,0.0001087,2]
[346827014,1735309848864,-518.20516667,0.0001087,2]
[346827015,1735309848874,-500.0,0.0001087,2]
[346827016,1735309848885,-500.0,0.0001087,2]
[346827017,1735309848896,-630.35,0.0001087,2]
[346827018,1735309848906,-929.61,0.0001087,2]
[346827019,1735309848917,-500.0,0.0001087,2]
[346827020,1735309848928,-507.34815433,0.0001087,2]
[346827021,1735309848938,-500.0,0.0001087,2]
[346827022,1735309848949,-687.19,0.0001087,2]
[346827023,1735309848960,-500.0,0.0001087,2]
[346827024,1735309848971,-500.0,0.0001087,2]
[346827025,1735309848981,-1136.07,0.0001087,2]
[346827026,1735309848991,-500.0,0.0001087,2]
[346827027,1735309849002,-500.0,0.0001087,2]
[346827028,1735309849012,-562.21050121,0.0001087,2]
[346827029,1735309849023,-500.0,0.0001087,2]
[346827030,1735309849034,-1099.51,0.0001087,2]
[346827031,1735309849044,-500.0,0.0001087,2]
[346827032,1735309849054,-500.0,0.0001087,2]
[346827033,1735309849066,-699.61,0.0001087,2]
[346827034,1735309849077,-500.0,0.0001087,2]
[346827035,1735309849087,-500.0,0.0001087,2]
[346827036,1735309849097,-750.98,0.0001087,2]
[346827037,1735309849107,-500.0,0.0001087,2]
[346827038,1735309849117,-500.0,0.0001087,2]
[346827039,1735309849127,-500.0,0.0001087,2]
[346827040,1735309849137,-551.83,0.0001087,2]
[346827041,1735309849147,-307.38914339,0.0001087,2]
[346827042,1735309849158,-500.0,0.0001087,2]
[346827043,1735309849168,-500.0,0.0001087,2]
[346827044,1735309849178,-600.27,0.0001087,2]
[346827045,1735309849188,-500.0,0.0001087,2]
[346827046,1735309849198,-500.0,0.0001087,2]
[346827047,1735309849207,-500.0,0.0001087,2]
[346827048,1735309849217,-500.0,0.0001087,2]
[346827049,1735309849227,-500.0,0.0001087,2]
[346827050,1735309849237,-500.0,0.0001087,2]
[346827051,1735309849248,-500.0,0.0001087,2]
[346827052,1735309849258,-500.0,0.0001087,2]
[346827053,1735309849268,-500.0,0.0001087,2]
[346827054,1735309849278,-500.0,0.0001087,2]
[346827055,1735309849288,-500.0,0.0001087,2]
[346827056,1735309849298,-500.0,0.0001087,2]
[346827057,1735309849308,-500.0,0.0001087,2]
[346827058,1735309849319,-500.0,0.0001087,2]
[346827059,1735309849329,-500.0,0.0001087,2]
[346827060,1735309849339,-500.0,0.0001087,2]
[346827061,1735309849350,-500.0,0.0001087,2]
[346827062,1735309849361,-500.0,0.0001087,2]
[346827063,1735309849370,-500.0,0.0001087,2]
[346827064,1735309849380,-964.77,0.0001087,2]
[346827065,1735309849389,-500.0,0.0001087,2]
[346827066,1735309849399,-500.0,0.0001087,2]
[346827067,1735309849409,-500.0,0.0001087,2]
[346827068,1735309849419,-500.0,0.0001087,2]
[346827069,1735309849429,-500.0,0.0001087,2]
[346827070,1735309849442,-500.0,0.0001087,2]
[346827071,1735309849453,-500.0,0.0001087,2]
[346827072,1735309849463,-500.0,0.0001087,2]
[346827073,1735309849473,-649.65353779,0.0001087,2]
[346827074,1735309849483,-500.0,0.0001087,2]
[346827075,1735309849493,-500.0,0.0001087,2]
[346827076,1735309849503,-500.0,0.0001087,2]
[346827077,1735309849513,-500.0,0.0001087,2]
[346827078,1735309849523,-637.72,0.0001087,2]
[346827079,1735309849532,-500.0,0.0001087,2]
[346827080,1735309849541,-500.0,0.0001087,2]
[346827081,1735309849552,-500.0,0.0001087,2]
[346827082,1735309849561,-500.0,0.0001087,2]
[346827083,1735309849572,-500.0,0.0001087,2]
[346827084,1735309849583,-551.63,0.0001087,2]
[346827085,1735309849592,-907.58,0.0001087,2]
[346827086,1735309849602,-500.0,0.0001087,2]
[346827087,1735309849612,-500.0,0.0001087,2]
[346827088,1735309849621,-500.0,0.0001087,2]
[346827089,1735309849631,-500.0,0.0001087,2]
[346827090,1735309849641,-534.74,0.0001087,2]
[346827091,1735309849651,-500.0,0.0001087,2]
[346827092,1735309849660,-297.15612674,0.0001087,2]
[346827093,1735309850230,-202.84387326,0.0001087,2]
[346827094,1735309850240,-137.25479104,0.0001087,2]
[346827095,1735309850252,-319.14350003,0.0001087,2]
[346827096,1735309850263,-43.60170893,0.0001087,2]
[346827097,1735309850273,-500.0,0.0001087,2]
[346827098,1735309850283,-500.0,0.0001087,2]
[346827099,1735309850293,-500.0,0.0001087,2]
[346827100,1735309850385,-633.78636386,0.0001087,2]
[346827101,1735309850395,-500.0,0.0001087,2]
[346827102,1735309850405,-500.0,0.0001087,2]
[346827103,1735309850415,-500.0,0.0001087,2]
[346827104,1735309850424,-500.0,0.0001087,2]
[346827105,1735309850434,-500.0,0.0001087,2]
[346827106,1735309850447,-500.0,0.0001087,2]
[346827107,1735309850456,-500.0,0.0001087,2]
[346827108,1735309850465,-500.0,0.0001087,2]
[346827109,1735309850476,-500.0,0.0001087,2]
[346827110,1735309850485,-500.0,0.0001087,2]
[346827111,1735309850495,-1207.38,0.0001087,2]
[346827112,1735309850505,-500.0,0.0001087,2]
[346827113,1735309850515,-500.0,0.0001087,2]
[346827114,1735309850524,-500.52808902,0.0001087,2]
[346827115,1735309850536,-500.0,0.0001087,2]
[346827116,1735309850545,-500.0,0.0001087,2]
[346827117,1735309850554,-125.18536693,0.0001087,2]
[346827118,1735309851255,-500.0,0.00010768,2]
[346827119,1735309851265,-506.04350671,0.00010771,2]
[346827120,1735309851275,-374.81463307,0.0001087,2]
[346827121,1735309851284,-500.0,0.0001087,2]
[346827122,1735309851293,-500.0,0.0001087,2]
[346827123,1735309851303,-500.0,0.0001087,2]
[346827124,1735309851312,-500.0,0.0001087,2]